bitfinex-derivatives/quotes_ETHF0:USTF0_20251013
["timestamp","ask_amount","ask_price","bid_price","bid_amount"]
[1760379104664,0.42736,4208.2,4208.0,0.1508]
[1760379104967,0.42736,4208.2,4208.1,0.3565]
[1760379105369,3.50969134,4208.2,4208.1,0.3565]
[1760379105563,3.50969134,4208.2,4208.0,0.1508]
[1760379105761,0.4274,4207.7,4207.6,0.3565]
[1760379106077,3.52626894,4207.7,4207.6,0.3565]
[1760379107073,3.52626894,4207.7,4207.5,0.1508]
[1760379107579,3.52626894,4207.7,4207.5,0.5073]
[1760379107870,3.52626894,4207.7,4207.5,0.1508]
[1760379108076,3.52626894,4207.7,4207.6,0.3415]
[1760379109072,0.03185637,4208.4,4207.6,0.3415]
[1760379109270,1.06835,4208.3,4207.6,0.3415]
[1760379109471,0.42737,4208.0,4207.6,0.3415]
[1760379109772,0.4274,4207.7,4207.6,0.3415]
[1760379109979,3.09770289,4207.9,4207.6,0.3415]
[1760379110165,3.46310214,4208.1,4208.0,0.4783]
[1760379110365,0.42736,4208.1,4208.0,0.4783]
[1760379110871,3.03574214,4208.1,4208.0,0.4783]
[1760379111169,0.03185637,4208.4,4208.1,0.3415]
[1760379111368,0.03185637,4208.4,4208.2,0.42734]
[1760379111573,0.03185637,4208.4,4208.3,0.3415]
[1760379111968,3.54429425,4208.4,4208.3,0.3415]
[1760379112272,0.42736,4208.1,4208.0,0.1368]
[1760379112469,0.42736,4208.1,4208.0,0.5091]
[1760379113160,0.03185637,4208.4,4208.1,0.3723]
[1760379113769,1.06799,4209.8,4208.1,0.3723]
[1760379113970,0.42724,4209.3,4209.1,0.3723]
[1760379114171,0.42722,4209.5,4209.1,0.3723]
[1760379114472,0.4272,4209.7,4209.6,0.3723]
[1760379114872,0.43010394,4209.7,4209.6,0.37498684]
[1760379116868,0.00290394,4209.7,4209.6,0.37498684]
[1760379119566,0.00290394,4209.7,4209.6,0.00268684]
[1760379119567,3.0589028,4209.7,4209.6,0.00268684]
[1760379119775,3.0589028,4209.7,4209.6,0.37498684]
[1760379120665,3.0589028,4209.7,4209.6,0.00268684]
[1760379121370,0.42725,4209.1,4209.0,0.137]
[1760379121571,0.4273,4208.7,4208.6,0.3723]
[1760379121774,0.42728,4208.9,4208.5,0.137]
[1760379121971,3.06102785,4208.7,4208.6,0.3723]
[1760379122270,0.42729,4208.8,4208.6,0.00209086]
[1760379122475,0.42729,4208.8,4208.7,0.3723]
[1760379122866,3.49475742,4208.8,4208.7,0.3723]
[1760379123670,3.49475742,4208.8,4208.6,0.00209086]
[1760379124175,3.06746742,4208.8,4208.6,0.00209086]
[1760379124374,1.06796,4209.9,4208.7,0.3723]
[1760379124575,2.32791987,4210.3,4209.0,0.137]
[1760379124576,0.42725,4209.2,4209.0,0.137]
[1760379124783,3.1423688,4209.1,4209.0,0.5093]
[1760379125071,0.43010394,4209.7,4209.5,0.137]
[1760379125271,0.00290394,4209.7,4209.6,0.3723]
[1760379126973,1.06756,4211.5,4211.0,0.137]
[1760379127275,1.06751,4211.7,4211.1,0.3723]
[1760379127276,0.42704,4211.2,4211.1,0.3723]
[1760379127480,0.42704,4211.2,4211.0,0.137]
[1760379127783,3.44941236,4211.2,4211.0,0.137]
[1760379128083,3.45165887,4211.2,4211.0,0.137]
[1760379128584,3.45165887,4211.2,4211.1,0.3723]
[1760379128585,3.45166887,4211.2,4211.1,0.3723]
[1760379128776,3.45165887,4211.2,4211.1,0.3723]
[1760379129372,3.02461887,4211.2,4211.1,0.3723]
[1760379132279,0.00224651,4211.2,4211.1,0.3723]
[1760379132474,0.00224651,4211.2,4211.0,0.56406]
[1760379132475,0.42695,4212.1,4212.0,0.137]
[1760379132680,0.249,4212.5,4212.1,0.3723]
[1760379132880,3.08266183,4212.6,4212.5,0.5093]
[1760379133068,0.022,4212.8,4212.5,0.137]
[1760379133275,0.022,4212.8,4212.6,0.3723]
[1760379133471,0.02473529,4212.8,4212.7,0.3723]
[1760379134183,0.6757,4214.6,4214.5,0.5093]
[1760379134479,0.6757,4214.6,4213.5,0.137]
[1760379134480,0.4268,4213.6,4213.5,0.137]
[1760379135081,1.06712,4213.2,4212.0,0.137]
[1760379135291,0.42704,4211.3,4211.0,0.137]
[1760379135587,0.42705,4211.2,4211.0,0.137]
[1760379136277,0.42705,4211.2,4211.0,0.13971259]
[1760379136477,0.42703,4211.4,4211.0,0.13971259]
[1760379136688,0.42704,4211.3,4211.1,0.3723]
[1760379137080,0.42705,4211.1,4211.0,0.13971259]
[1760379137585,0.42705,4211.1,4211.0,0.51201259]
[1760379137980,1.06709,4213.3,4211.0,0.93907259]
[1760379138182,0.42698,4211.8,4211.6,0.3723]
[1760379138683,1.06719,4212.9,4211.5,0.137]
[1760379138877,0.42704,4211.2,4211.1,0.3723]
[1760379139189,0.42704,4211.2,4211.0,0.51201259]
[1760379139376,3.44956961,4211.2,4211.0,0.00271259]
[1760379139782,3.44956961,4211.2,4211.1,0.3723]
[1760379139984,3.44956961,4211.2,4211.0,0.00271259]
[1760379140485,3.44956961,4211.2,4211.1,0.3723]
[1760379141189,3.44956961,4211.2,4211.0,0.00271259]
[1760379143884,0.248,4211.1,4211.0,0.00271259]
[1760379144387,3.344587,4211.1,4211.0,0.00271259]
[1760379144587,3.344587,4211.1,4209.5,0.137]
[1760379144588,0.42719,4209.7,4209.5,0.137]
[1760379144780,0.42719,4209.7,4209.6,0.334]
[1760379145183,3.51174379,4209.7,4209.6,0.334]
[1760379145487,3.51453117,4209.7,4209.6,0.33594061]
[1760379145884,3.51453117,4209.7,4209.6,0.00194061]
[1760379146385,3.51453117,4209.7,4209.6,0.33594061]
[1760379146586,0.00278738,4209.7,4209.6,0.33594061]
[1760379147484,1.06771,4210.9,4209.6,0.33594061]
[1760379147485,0.42706,4211.1,4209.6,0.33594061]
[1760379147680,2.32749987,4211.9,4210.1,0.334]
[1760379147681,1.06756,4211.4,4210.1,0.334]
[1760379147882,1.06756,4211.4,4210.0,0.57506]
[1760379147883,3.12478605,4211.0,4210.6,0.334]
[1760379148185,0.42712,4210.4,4210.0,0.1479]
[1760379148385,0.42712,4210.4,4210.1,0.334]
[1760379148597,0.42711,4210.6,4210.5,0.1479]
[1760379148888,3.57944919,4210.6,4210.5,0.4819]
[1760379149282,3.15233919,4210.6,4210.5,0.4819]
[1760379149690,0.00287058,4210.6,4210.5,0.4819]
[1760379150590,0.42714,4210.3,4210.0,0.1479]
[1760379150989,0.42712,4210.4,4210.1,0.334]
[1760379151189,0.42712,4210.5,4210.0,0.1479]
[1760379151490,0.42713,4210.4,4210.1,0.334]
[1760379151886,0.42712,4210.5,4210.1,0.334]
[1760379152084,3.07972706,4210.6,4210.5,0.4819]
[1760379152292,0.00287058,4210.6,4210.5,0.4819]
[1760379152596,0.00287058,4210.6,4210.5,0.90901]
[1760379152891,1.06724,4212.7,4211.6,0.334]
[1760379153087,0.248,4212.6,4212.1,0.334]
[1760379153392,3.09270202,4212.3,4212.1,0.334]
[1760379153691,0.4269,4212.6,4212.5,0.4819]
[1760379153890,0.42937888,4212.6,4212.5,0.4819]
[1760379154193,0.42695,4212.2,4212.0,0.1479]
[1760379154497,0.42695,4212.2,4212.1,0.334]
[1760379154693,0.427,4211.6,4211.5,0.4819]
[1760379154989,0.427,4211.6,4211.0,0.1479]
[1760379154990,0.42703,4211.4,4211.1,0.334]
[1760379155196,3.01638507,4211.6,4211.5,0.4819]
[1760379155491,0.42699,4211.7,4211.6,0.334]
[1760379155791,3.03355359,4212.3,4211.6,0.334]
[1760379155990,0.42695,4212.1,4212.0,0.1479]
[1760379156286,0.42699,4211.7,4211.6,0.334]
[1760379156592,0.42699,4211.7,4211.5,0.4819]
[1760379156795,0.42699,4211.7,4211.6,0.334]
[1760379156999,0.42699,4211.7,4211.5,0.1479]
[1760379157000,3.53435959,4211.7,4211.5,0.1479]
[1760379157185,3.53435959,4211.7,4211.5,0.4819]
[1760379157386,3.53435959,4211.7,4211.6,0.334]
[1760379158190,1.06751,4211.6,4211.0,0.4819]
[1760379158384,0.42704,4211.2,4211.0,0.4819]
[1760379158581,0.42704,4211.2,4211.1,0.334]
[1760379160291,0.42712,4210.5,4210.1,0.334]
[1760379160682,1.06764,4211.1,4210.0,0.1479]
[1760379160886,0.42714,4210.3,4210.1,0.334]
[1760379161393,1.0677,4210.9,4210.1,0.334]
[1760379161585,1.06756,4211.4,4210.0,0.1479]
[1760379161586,0.4271,4210.6,4210.0,0.1479]
[1760379161786,0.42711,4210.5,4210.1,0.334]
[1760379161986,0.42712,4210.4,4210.1,0.334]
[1760379162192,3.04505436,4210.5,4210.1,0.334]
[1760379162391,3.06132497,4210.3,4210.0,0.1479]
[1760379162587,3.06132497,4210.3,4209.7,0.5939]
[1760379162792,1.90759991,4211.4,4209.7,0.5939]
[1760379162793,0.84003991,4211.6,4210.1,0.334]
[1760379162995,0.42714,4210.3,4210.1,0.334]
[1760379163694,0.42715,4210.2,4210.0,0.5566]
[1760379163896,0.42715,4210.2,4210.1,0.334]
[1760379164100,0.42714,4210.3,4210.1,0.334]
[1760379164298,0.42715,4210.1,4210.0,0.5566]
[1760379164598,0.42714,4210.3,4210.0,0.5566]
[1760379164793,0.42715,4210.2,4210.1,0.334]
[1760379166193,0.42715,4210.1,4210.0,0.4087]
[1760379166492,0.42718,4209.8,4209.7,0.2599]
[1760379166697,0.42718,4209.8,4209.7,0.334]
[1760379167100,0.42719,4209.7,4209.6,0.00194061]
[1760379167395,3.48968128,4209.8,4209.7,0.334]
[1760379167595,0.42717,4209.9,4209.7,0.334]
[1760379167798,0.42717,4209.9,4209.7,0.329]
[1760379168099,0.42717,4209.9,4209.6,0.00194061]
[1760379168294,0.42712,4210.4,4210.1,0.329]
[1760379168594,0.248,4210.7,4210.5,0.1338]
[1760379168788,0.42709,4210.8,4210.5,0.1338]
[1760379169095,0.42709,4210.7,4210.6,0.329]
[1760379169296,1.06764,4211.1,4210.6,0.329]
[1760379169491,3.14226109,4210.7,4210.6,0.329]
[1760379169686,1.06766,4211.0,4210.4,0.4085]
[1760379169687,3.14226109,4210.8,4210.4,0.4085]
[1760379169887,0.42711,4210.5,4210.4,0.4085]
[1760379170398,3.4830238,4210.5,4210.4,0.4085]
[1760379171897,3.7310238,4210.5,4210.4,0.7375]
[1760379172395,3.4830238,4210.5,4210.4,0.7375]
[1760379172593,0.42709,4210.8,4210.6,0.3319]
[1760379173094,3.32399594,4210.9,4210.5,0.1371]
[1760379173398,0.42708,4210.8,4210.6,0.3319]
[1760379173591,3.44503003,4210.8,4210.6,0.3319]
[1760379174294,0.42709,4210.7,4210.6,0.3319]
[1760379175199,3.01795003,4210.8,4210.6,0.3319]
[1760379175902,3.44503003,4210.8,4210.6,0.3319]
[1760379176202,3.01795003,4210.8,4210.5,0.1371]
[1760379176696,0.84003991,4212.1,4211.1,0.3319]
[1760379176899,0.42693,4212.3,4211.6,0.7589]
[1760379177098,0.42694,4212.2,4212.1,0.3319]
[1760379178002,0.427,4211.7,4211.6,0.3319]
[1760379178200,1.06741,4212.0,4211.5,0.1371]
[1760379178394,3.01672364,4211.7,4211.6,0.3319]
[1760379178606,0.42704,4211.2,4211.1,0.3319]
[1760379179202,0.42703,4211.3,4211.0,0.1371]
[1760379179402,0.42703,4211.3,4211.1,0.3319]
[1760379179604,0.42702,4211.5,4211.0,0.1371]
[1760379179898,0.42698,4211.8,4211.6,0.3319]
[1760379180103,0.42696,4212.1,4212.0,0.1371]
[1760379180305,0.42696,4212.1,4212.0,0.469]
[1760379180306,3.05864986,4212.1,4212.0,0.469]
[1760379182407,0.00247888,4212.6,4212.5,0.469]
[1760379182408,0.42937888,4212.6,4212.5,0.469]
[1760379182602,0.42937888,4212.6,4212.5,0.1371]
[1760379182807,0.42695,4212.2,4212.1,0.3319]
[1760379183104,3.12122986,4212.4,4212.0,0.1371]
[1760379183311,0.427,4211.6,4211.5,0.469]
[1760379183513,1.06738,4212.1,4211.0,0.1371]
[1760379183514,0.42703,4211.3,4211.0,0.1371]
[1760379183804,0.42701,4211.5,4211.0,0.1371]
[1760379184008,0.42702,4211.4,4211.1,0.3319]
[1760379184209,3.46936501,4211.4,4211.0,0.1371]
[1760379184410,0.42702,4211.4,4211.1,0.3319]
[1760379184609,0.248,4212.0,4211.0,0.1371]
[1760379184803,0.248,4212.0,4211.5,0.1371]
[1760379185110,0.42703,4211.3,4211.2,0.3319]
[1760379185309,0.42702,4211.5,4211.0,0.1371]
[1760379185510,0.42703,4211.3,4211.1,0.3319]
[1760379185706,3.03505582,4211.4,4210.5,0.1371]
[1760379185912,0.42709,4210.8,4210.5,0.1371]
[1760379186315,0.42708,4210.9,4210.6,0.3319]
[1760379186526,0.42706,4211.0,4210.6,0.3319]
[1760379186823,1.06749,4211.7,4210.6,0.3319]
[1760379186824,0.4271,4210.7,4210.6,0.3319]
[1760379188023,0.42708,4210.9,4210.6,0.3319]
[1760379188415,3.46873279,4210.8,4210.5,0.1371]
[1760379188914,0.4271,4210.7,4210.6,0.3319]
[1760379189221,3.07020394,4211.1,4210.6,0.3319]
[1760379189418,0.42709,4210.7,4210.5,0.1371]
[1760379189615,0.42709,4210.7,4210.6,0.3319]
[1760379190018,0.42708,4210.9,4210.5,0.1371]
[1760379190219,0.4271,4210.7,4210.5,0.1371]
[1760379190520,0.4271,4210.7,4210.6,0.3319]
[1760379191321,1.06742,4212.0,4210.6,0.3319]
[1760379191523,1.06742,4212.0,4210.5,0.1371]
[1760379191524,1.06749,4211.7,4210.7,0.3319]
[1760379191718,3.09594228,4211.1,4211.0,0.469]
[1760379191918,3.09594228,4211.1,4210.4,0.4085]
[1760379191919,0.42711,4210.5,4210.4,0.4085]
[1760379192326,3.54899895,4210.5,4210.4,0.4085]
[1760379193318,0.42723,4209.3,4209.2,0.3319]
[1760379193618,0.42725,4209.1,4208.5,0.469]
[1760379193829,0.42725,4209.1,4209.0,0.469]
[1760379194020,3.56442474,4209.1,4209.0,0.469]
[1760379194424,3.56619837,4209.1,4209.0,0.47189537]
[1760379194825,3.56619837,4209.1,4209.0,0.13999537]
[1760379195124,3.56619837,4209.1,4209.0,0.00289537]
[1760379195327,0.42736,4208.1,4208.0,0.469]
[1760379195826,3.06603053,4208.1,4208.0,0.469]
[1760379196220,3.49338053,4208.2,4208.1,0.3319]
[1760379196525,3.49338053,4208.2,4208.0,0.13910978]
[1760379196526,0.42735,4208.2,4208.0,0.13910978]
[1760379196824,3.15061158,4208.2,4207.8,0.02376539]
[1760379197035,3.15061158,4208.2,4207.1,0.3319]
[1760379197036,0.42745,4207.2,4207.1,0.3319]
[1760379197330,3.4506797,4207.2,4207.1,0.3319]
[1760379198020,3.4506797,4207.2,4207.1,0.33389314]
[1760379200729,3.4506797,4207.2,4207.1,0.00199314]
[1760379201230,0.42751,4206.6,4206.5,0.469]
[1760379201430,0.6755,4206.8,4206.5,0.1371]
[1760379201624,0.4275,4206.7,4206.6,0.3319]
[1760379201825,3.47244433,4206.7,4206.6,0.3319]
[1760379202127,3.47244433,4206.7,4206.0,0.1371]
[1760379202128,0.42753,4206.5,4206.1,0.3319]
[1760379202330,0.67552,4206.5,4206.2,0.3309]
[1760379202522,3.45405436,4206.4,4206.2,0.3309]
[1760379202722,3.02652436,4206.4,4206.1,0.00224751]
[1760379202919,3.02652436,4206.4,4206.2,0.3309]
[1760379203117,0.67552,4206.5,4206.2,0.3309]
[1760379203325,1.06851,4207.7,4206.1,0.00224751]
[1760379203326,1.06845,4208.0,4206.5,0.4663]
[1760379203628,3.1104182,4207.6,4207.5,0.1354]
[1760379203826,3.1104182,4207.6,4207.5,0.4663]
[1760379204022,0.4274,4207.7,4207.5,0.1354]
[1760379204224,3.1104182,4207.6,4207.5,0.1354]
[1760379204423,3.1104182,4207.6,4207.0,0.4663]
[1760379204424,3.3584182,4207.6,4207.0,0.4663]
[1760379204629,0.42744,4207.3,4207.0,0.4663]
[1760379204828,0.42742,4207.5,4207.0,0.1354]
[1760379205025,3.48270836,4207.2,4207.0,0.1354]
[1760379205232,0.42745,4207.2,4207.0,0.1354]
[1760379205527,0.42751,4206.7,4206.5,0.4663]
[1760379205731,0.42751,4206.7,4206.5,0.1354]
[1760379206031,3.10472834,4206.6,4206.5,0.1354]
[1760379206330,3.10472834,4206.6,4206.1,0.33314751]
[1760379206520,0.247,4206.5,4206.1,0.00224751]
[1760379206724,0.42753,4206.4,4206.2,0.3309]
[1760379206926,3.52417672,4206.4,4206.2,0.3309]
[1760379207125,3.52417672,4206.4,4206.1,0.00224751]
[1760379207320,3.52417672,4206.4,4206.2,0.3309]
[1760379207321,3.09664672,4206.4,4206.2,0.3309]
[1760379207731,0.247,4206.8,4206.5,0.1354]
[1760379208027,0.42754,4206.3,4206.1,0.00224751]
[1760379208227,0.67454,4206.3,4206.1,0.00224751]
[1760379208430,3.08827086,4206.2,4206.1,0.33314751]
[1760379208630,3.08827086,4206.2,4206.1,0.00224751]
[1760379209032,3.08827086,4206.2,4206.1,0.33314751]
[1760379209433,3.08827086,4206.2,4206.1,0.00224751]
[1760379210328,3.08827086,4206.2,4206.1,0.33314751]
[1760379212034,0.42755,4206.2,4206.1,0.00224751]
[1760379212432,3.45290077,4206.2,4206.1,0.00224751]
[1760379212928,0.4276,4205.7,4205.6,0.3309]
[1760379213237,3.45295077,4205.7,4205.6,0.3309]
[1760379213938,3.45574408,4205.7,4205.6,0.33346077]
[1760379215137,3.45574408,4205.7,4205.6,0.00256077]
[1760379217838,3.45574408,4205.7,4204.9,0.3309]
[1760379217839,1.06906,4205.5,4204.9,0.3309]
[1760379218039,0.42766,4205.1,4204.9,0.3309]
[1760379218238,0.42766,4205.1,4204.5,0.1354]
[1760379218239,0.42771,4204.6,4204.5,0.1354]
[1760379218433,0.42771,4204.6,4204.3,0.3309]
[1760379218434,0.42776,4204.1,4204.0,0.4663]
[1760379218641,0.42776,4204.1,4203.5,0.1354]
[1760379218642,0.42781,4203.6,4203.5,0.4663]
[1760379218938,0.247,4203.7,4203.6,0.3309]
[1760379219353,3.39789991,4203.7,4203.6,0.3309]
[1760379219542,3.15089991,4203.7,4203.6,0.3309]
[1760379219839,0.247,4203.7,4203.6,0.3309]
[1760379220041,0.42777,4204.1,4204.0,0.1354]
[1760379220245,0.247,4204.1,4203.5,0.46910552]
[1760379220435,0.42781,4203.6,4203.5,0.00280552]
[1760379220639,0.67481,4203.6,4203.1,0.3309]
[1760379220838,3.79954338,4203.6,4203.0,0.4663]
[1760379221037,3.37173338,4203.6,4203.1,0.3309]
[1760379221342,3.37173338,4203.6,4203.0,0.4663]
[1760379221640,3.37173338,4203.6,4203.0,0.13759481]
[1760379221641,0.42784,4203.4,4203.0,0.13759481]
[1760379221840,0.247,4203.3,4203.0,0.13759481]
[1760379222041,3.34221462,4203.3,4203.1,0.3309]
[1760379222238,3.09521462,4203.3,4203.1,0.3309]
[1760379222441,3.09521462,4203.3,4203.0,0.13759481]
[1760379222442,0.67486,4203.2,4203.0,0.13759481]
[1760379222741,3.13498659,4203.1,4203.0,0.13759481]
[1760379223844,3.13498659,4203.1,4203.0,0.46849481]
[1760379224042,0.247,4203.6,4203.5,0.4663]
[1760379224437,3.28201227,4203.6,4203.5,0.4663]
[1760379225435,3.28201227,4203.6,4203.5,0.1354]
[1760379225644,3.28201227,4203.6,4203.0,0.46849481]
[1760379225837,0.42786,4203.2,4203.0,0.46849481]
[1760379226147,3.28496962,4203.1,4201.0,0.1354]
[1760379226438,0.42794,4202.4,4201.3,0.3309]
[1760379226644,0.247,4202.3,4202.0,0.1354]
[1760379226945,0.247,4202.2,4202.1,0.3309]
[1760379227140,0.00266733,4202.3,4202.0,0.13754757]
[1760379227441,3.08773867,4202.2,4202.1,0.3309]
[1760379228341,3.33473867,4202.2,4202.1,0.3309]
[1760379230548,3.08773867,4202.2,4202.1,0.3309]
[1760379230745,0.00266733,4202.3,4202.2,0.77316]
[1760379231046,0.247,4203.5,4203.1,0.3452]
[1760379231249,0.247,4203.5,4203.0,0.1356]
[1760379231448,0.247,4203.5,4202.5,0.1356]
[1760379231449,1.0696,4203.4,4202.5,0.1356]
[1760379231748,0.4279,4202.8,4202.5,0.1356]
[1760379232042,3.8363169,4202.7,4202.5,0.1356]
[1760379232247,3.8363169,4202.7,4202.6,0.3452]
[1760379232635,3.1614069,4202.7,4202.6,0.3452]
[1760379232939,0.0025645,4202.8,4202.5,0.1356]
[1760379233145,0.0025645,4202.8,4202.6,0.3225]
[1760379233346,0.0025645,4202.8,4202.5,0.1356]
[1760379233548,0.0025645,4202.8,4202.6,0.3225]
[1760379233944,0.0025645,4202.8,4202.5,0.1356]
[1760379234137,0.0025645,4202.8,4202.6,0.3225]
[1760379234342,0.0025645,4202.8,4202.5,0.1356]
[1760379234647,3.15089988,4202.7,4202.6,0.3225]
[1760379238956,0.0025645,4202.8,4202.6,0.3225]
[1760379240252,0.0025645,4202.8,4202.5,0.1356]
[1760379240455,3.47098499,4202.7,4202.6,0.3225]
[1760379243458,0.42792,4202.6,4202.5,0.1356]
[1760379243860,3.48633228,4202.6,4202.5,0.4581]
[1760379244461,3.48633228,4202.6,4202.5,0.1356]
[1760379244659,0.42796,4202.2,4202.1,0.3225]
[1760379244859,0.67496,4202.2,4202.1,0.3225]
[1760379245059,3.81355823,4202.2,4202.1,0.3225]
[1760379246363,3.81355823,4202.2,4202.0,0.13754757]
[1760379246955,3.56655823,4202.2,4202.1,0.3225]
[1760379247265,0.0025645,4202.8,4202.1,0.3225]
[1760379247454,0.0025645,4202.8,4202.6,0.3225]
[1760379247656,3.1022996,4202.7,4202.6,0.3225]
[1760379247857,3.5302096,4202.7,4202.6,0.3225]
[1760379248154,3.5302096,4202.7,4202.5,0.1406]
[1760379248155,0.42792,4202.6,4202.5,0.1406]
[1760379248361,0.42792,4202.6,4202.5,0.4631]
[1760379248662,3.48232587,4202.6,4202.5,0.4631]
[1760379248867,3.72932587,4202.6,4202.5,0.4631]
[1760379249267,4.57974855,4202.6,4202.5,0.1406]
[1760379249571,0.42797,4202.1,4202.0,0.00214757]
[1760379249766,1.31695,4202.1,4201.2,0.2380244]
[1760379249964,0.42811,4200.7,4200.5,0.1406]
[1760379250164,0.247,4200.6,4200.5,0.1406]
[1760379250365,3.12231639,4200.6,4200.5,0.1406]
[1760379250665,3.09858581,4200.9,4200.5,0.1406]
[1760379250875,0.42807,4201.1,4201.0,0.1406]
[1760379251065,0.67506,4201.2,4201.0,0.1406]
[1760379251266,3.09858581,4201.1,4201.0,0.1406]
[1760379251865,3.09858581,4201.1,4201.0,0.4631]
[1760379252368,0.247,4201.3,4201.1,0.3225]
[1760379252568,0.85371689,4201.8,4201.0,0.1406]
[1760379252569,0.247,4201.6,4201.5,0.4631]
[1760379252768,3.47172918,4201.7,4201.5,0.4631]
[1760379252975,3.29071918,4201.6,4201.5,0.1406]
[1760379253169,0.42807,4201.1,4201.0,0.4631]
[1760379253376,0.42811,4200.7,4200.6,0.3225]
[1760379253671,3.51386994,4200.7,4200.6,0.3225]
[1760379255165,3.08575994,4200.7,4200.6,0.3225]
[1760379255876,0.85371689,4202.0,4201.6,0.3225]
[1760379256077,0.247,4201.9,4201.5,0.4631]
[1760379256278,3.58686127,4201.7,4201.5,0.1406]
[1760379256475,0.247,4201.6,4201.5,0.1406]
[1760379256676,0.85371689,4202.0,4201.6,0.3225]
[1760379256871,0.85371689,4202.0,4201.5,0.1406]
[1760379256872,0.42795,4202.3,4202.0,0.1406]
[1760379257177,3.14679817,4202.2,4202.1,0.3225]
[1760379258873,0.0025645,4202.8,4202.5,0.4631]
[1760379258874,0.42791,4202.7,4202.5,0.4631]
[1760379259174,3.57121444,4202.7,4202.6,0.3225]
[1760379259374,3.81821444,4202.7,4202.6,0.3225]
[1760379260876,3.81821444,4202.7,4202.5,0.1406]
[1760379261077,3.81821444,4202.7,4202.0,0.4631]
[1760379261283,0.42796,4202.2,4202.1,0.3225]
[1760379261478,0.67496,4202.2,4202.1,0.3225]
[1760379261680,3.8094165,4202.2,4202.1,0.3225]
[1760379261884,3.3814565,4202.2,4202.1,0.3225]
[1760379264482,3.1344565,4202.2,4202.1,0.3225]
[1760379264682,0.42797,4202.1,4202.0,0.1406]
[1760379264877,0.67497,4202.1,4202.0,0.1406]
[1760379265081,3.74995734,4202.1,4202.0,0.1406]
[1760379265281,3.74995734,4202.1,4202.0,0.4565]
[1760379265477,3.07498734,4202.1,4202.0,0.4565]
[1760379266091,0.4304645,4202.8,4202.6,0.3159]
[1760379266283,0.247,4202.7,4202.6,0.3159]
[1760379266590,3.34303045,4202.7,4202.6,0.3159]
[1760379267082,3.09603045,4202.7,4202.6,0.3159]
[1760379267388,3.34303045,4202.7,4202.6,0.3159]
[1760379268386,0.247,4202.7,4202.6,0.3159]
[1760379268888,0.0025645,4202.8,4202.7,0.3159]
[1760379270288,0.247,4203.9,4203.5,0.1364]
[1760379270479,0.85371689,4204.4,4204.1,0.3159]
[1760379270684,0.42776,4204.2,4204.1,0.3159]
[1760379270985,3.74150746,4204.2,4204.1,0.3159]
[1760379271180,3.74335268,4204.2,4204.1,0.31883214]
[1760379272591,3.74335268,4204.2,4203.5,0.1364]
[1760379272592,3.31559268,4204.2,4203.5,0.1364]
[1760379272795,0.42776,4204.1,4204.0,0.4523]
[1760379273195,3.55248373,4204.1,4204.0,0.4523]
[1760379273491,3.55248373,4204.1,4204.0,0.45515066]
[1760379275794,3.79948373,4204.1,4204.0,0.45515066]
[1760379279197,3.12472373,4204.1,4204.0,0.45515066]
[1760379279400,0.00184522,4204.2,4204.0,0.13925066]
[1760379279601,0.00184522,4204.2,4204.1,0.3159]
[1760379279602,0.42959522,4204.2,4204.1,0.3159]
[1760379280504,0.42776,4204.1,4204.0,0.13925066]
[1760379280703,3.02350993,4204.2,4204.1,0.3159]
[1760379280904,0.03184522,4204.2,4204.1,0.3159]
[1760379281203,3.61076986,4204.2,4204.1,0.3159]
[1760379283501,0.03184522,4204.2,4204.1,0.74366]
[1760379283803,0.42761,4205.6,4205.5,0.4523]
[1760379284004,0.67461,4205.6,4205.5,0.4523]
[1760379284199,3.74699404,4205.6,4205.5,0.4523]
[1760379284599,0.42766,4205.1,4205.0,0.4523]
[1760379285100,3.5766672,4205.1,4205.0,0.4523]
[1760379285806,3.1490072,4205.1,4205.0,0.4523]
[1760379286307,3.5766672,4205.1,4205.0,0.4523]
[1760379287196,3.5766672,4205.1,4204.5,0.1364]
[1760379287197,3.1790072,4205.1,4204.6,0.3159]
[1760379287503,0.42771,4204.6,4204.5,0.1364]
[1760379287696,0.42771,4204.6,4204.5,0.4523]
[1760379287904,3.77704787,4204.6,4204.5,0.4523]
[1760379288506,3.10233787,4204.6,4204.5,0.4523]
[1760379288904,0.4277,4204.7,4204.6,0.3143]
[1760379289207,3.04491633,4204.7,4204.6,0.3143]
[1760379289707,0.4277,4204.7,4204.6,0.3143]
[1760379290100,3.54322868,4204.7,4204.6,0.3143]
[1760379291114,0.03,4205.1,4205.0,0.4438]
[1760379291307,0.00224271,4205.6,4205.0,0.87147]
[1760379291510,0.67457,4206.1,4206.0,0.4438]
[1760379291811,3.73467636,4206.1,4206.0,0.4438]
[1760379292507,3.7368822,4206.1,4206.0,0.4438]
[1760379293303,3.4898822,4206.1,4206.0,0.4438]
[1760379294407,3.0623122,4206.1,4206.0,0.4438]
[1760379294618,0.00220584,4206.1,4206.0,0.4438]
[1760379295112,3.53427223,4206.1,4206.0,0.4438]
[1760379295309,3.53427223,4206.1,4206.0,0.1295]
[1760379296411,3.53427223,4206.1,4206.0,0.4515]
[1760379297514,0.00220584,4206.1,4206.0,0.4515]
[1760379298405,0.42748,4206.9,4206.1,0.322]
[1760379298617,0.42749,4206.8,4206.5,0.1269]
[1760379298809,0.42749,4206.8,4206.6,0.322]
[1760379299211,0.246,4207.3,4207.0,0.1269]
[1760379299409,0.42745,4207.2,4207.1,0.322]
[1760379299713,3.10584723,4207.2,4207.1,0.322]
[1760379299920,0.42984155,4207.3,4207.1,0.322]
[1760379300523,0.00240155,4207.3,4207.1,0.322]
[1760379301815,0.42984155,4207.3,4207.1,0.322]
[1760379302013,0.022,4207.8,4207.6,0.322]
[1760379302315,1.25928545,4209.1,4208.5,0.1269]
[1760379302316,0.42731,4208.6,4208.5,0.1269]